[Event "*** SCC Grand Prix: Titled Tuesday Blitz"]
[Site "Chess.com"]
[Date "2020.06.23"]
[Round "4"]
[White "Moon_stone123"]
[Black "Tooweak2slow03"]
[Result "0-1"]
[WhiteElo "2463"]
[BlackElo "2652"]
[TimeControl "180+1"]
[EndTime "10:37:58 PDT"]
[Termination "Tooweak2slow03 won by resignation"]

1. Nf3 {[%clk 0:03:00.9]} 1... e6 {[%clk 0:03:00.9]} 2. g3 {[%clk 0:03:00]} 2...
b6 {[%clk 0:03:01.1]} 3. Bg2 {[%clk 0:02:59.9]} 3... Bb7 {[%clk 0:03:02]} 4. O-O
{[%clk 0:03:00]} 4... f5 {[%clk 0:03:02.6]} 5. c4 {[%clk 0:02:55.2]} 5... Nf6
{[%clk 0:03:03.1]} 6. Nc3 {[%clk 0:02:55.2]} 6... Bb4 {[%clk 0:03:03]} 7. Qc2
{[%clk 0:02:43.7]} 7... O-O {[%clk 0:03:02.4]} 8. d3 {[%clk 0:02:43.2]} 8... Qe8
{[%clk 0:03:01.5]} 9. a3 {[%clk 0:02:41]} 9... Bxc3 {[%clk 0:03:01.6]} 10. Qxc3
{[%clk 0:02:41.9]} 10... d6 {[%clk 0:03:02.1]} 11. b4 {[%clk 0:02:41.3]} 11...
a5 {[%clk 0:03:02.3]} 12. Bb2 {[%clk 0:02:40.9]} 12... Nbd7 {[%clk 0:03:02.9]}
13. Rfe1 {[%clk 0:02:35.6]} 13... Qh5 {[%clk 0:03:01.3]} 14. Qd2 {[%clk
0:01:36.2]} 14... e5 {[%clk 0:02:52.8]} 15. Bc3 {[%clk 0:01:31.3]} 15... axb4
{[%clk 0:02:46.1]} 16. axb4 {[%clk 0:01:32.2]} 16... f4 {[%clk 0:02:12.3]} 17.
Rxa8 {[%clk 0:01:27.5]} 17... Bxa8 {[%clk 0:02:13.2]} 18. Ra1 {[%clk 0:01:25.8]}
18... e4 {[%clk 0:02:06]} 19. dxe4 {[%clk 0:01:03.8]} 19... Nxe4 {[%clk
0:02:06.9]} 20. Qd3 {[%clk 0:01:01]} 20... Ndf6 {[%clk 0:02:03.4]} 21. Bxf6
{[%clk 0:00:59.9]} 21... Nxf6 {[%clk 0:02:01.5]} 22. Qd4 {[%clk 0:00:53.1]}
22... fxg3 {[%clk 0:01:59.3]} 23. hxg3 {[%clk 0:00:54]} 23... Qe8 {[%clk
0:01:55.7]} 24. e3 {[%clk 0:00:51.2]} 24... Qh5 {[%clk 0:01:47.7]} 25. Ra7
{[%clk 0:00:43.6]} 25... Bxf3 {[%clk 0:01:45.7]} 26. Rxc7 {[%clk 0:00:36.8]}
26... Ne8 {[%clk 0:01:41.1]} 27. Re7 {[%clk 0:00:14.7]} 27... Bxg2 {[%clk
0:01:39.3]} 28. Kxg2 {[%clk 0:00:13.7]} 28... Qf3+ {[%clk 0:01:39.9]} 29. Kh3
{[%clk 0:00:14.2]} 29... Qxf2 {[%clk 0:01:37.5]} 30. Qd5+ {[%clk 0:00:14.1]}
30... Kh8 {[%clk 0:01:37.5]} 31. Qh5 {[%clk 0:00:12.7]} 31... Qf1+ {[%clk
0:01:35.5]} 32. Kh4 {[%clk 0:00:13]} 32... Qh1+ {[%clk 0:01:34.2]} 33. Kg4
{[%clk 0:00:12.6]} 33... Nf6+ {[%clk 0:01:33.6]} 34. Kg5 {[%clk 0:00:11.9]}
34... Qxh5+ {[%clk 0:01:33.4]} 35. Kf4 {[%clk 0:00:11.5]} 35... Nd5+ {[%clk
0:01:33.5]} 0-1

[Event "*** SCC Grand Prix: Titled Tuesday Blitz"]
[Site "Chess.com"]
[Date "2020.06.23"]
[Round "4"]
[White "TimKett"]
[Black "Atanejhad"]
[Result "1-0"]
[WhiteElo "2225"]
[BlackElo "2393"]
[TimeControl "180+1"]
[EndTime "10:37:58 PDT"]
[Termination "TimKett won by resignation"]

1. e4 {[%clk 0:03:00.9]} 1... c5 {[%clk 0:02:55.2]} 2. Nf3 {[%clk 0:02:59.6]}
2... g6 {[%clk 0:02:44.6]} 3. c3 {[%clk 0:02:57]} 3... Bg7 {[%clk 0:02:34.5]} 4.
d4 {[%clk 0:02:56.7]} 4... cxd4 {[%clk 0:02:35.4]} 5. cxd4 {[%clk 0:02:56.4]}
5... d5 {[%clk 0:02:25.5]} 6. exd5 {[%clk 0:02:55.4]} 6... Nf6 {[%clk
0:02:11.3]} 7. Bb5+ {[%clk 0:02:42.5]} 7... Nbd7 {[%clk 0:02:08]} 8. Nc3 {[%clk
0:02:40.7]} 8... O-O {[%clk 0:02:07.4]} 9. O-O {[%clk 0:02:38.3]} 9... Nb6
{[%clk 0:02:05]} 10. Bg5 {[%clk 0:02:20.8]} 10... Nbxd5 {[%clk 0:01:56.3]} 11.
Re1 {[%clk 0:02:15.7]} 11... Bg4 {[%clk 0:01:52.3]} 12. h3 {[%clk 0:02:11.8]}
12... Bxf3 {[%clk 0:01:47.8]} 13. Qxf3 {[%clk 0:02:11.6]} 13... Nb6 {[%clk
0:00:35.9]} 14. Rad1 {[%clk 0:02:05.1]} 14... h6 {[%clk 0:00:32.5]} 15. Bh4
{[%clk 0:01:56.2]} 15... g5 {[%clk 0:00:31.7]} 16. Bg3 {[%clk 0:01:55.8]} 16...
e6 {[%clk 0:00:27.9]} 17. Qxb7 {[%clk 0:01:53.6]} 17... Nfd5 {[%clk 0:00:13.9]}
18. Nxd5 {[%clk 0:01:47.2]} 18... Nxd5 {[%clk 0:00:14.5]} 19. Bc6 {[%clk
0:01:43.9]} 19... Rb8 {[%clk 0:00:12.8]} 20. Bxb8 {[%clk 0:01:41.5]} 20... Qxb8
{[%clk 0:00:13.7]} 21. Qxb8 {[%clk 0:01:41.2]} 21... Rxb8 {[%clk 0:00:14.6]} 22.
Bxd5 {[%clk 0:01:41]} 22... exd5 {[%clk 0:00:15.5]} 23. b3 {[%clk 0:01:40.7]}
23... Rb4 {[%clk 0:00:16]} 24. Re8+ {[%clk 0:01:28.4]} 24... Kh7 {[%clk
0:00:14.8]} 25. Rd8 {[%clk 0:01:27.1]} 1-0

[Event "*** SCC Grand Prix: Titled Tuesday Blitz"]
[Site "Chess.com"]
[Date "2020.06.23"]
[Round "4"]
[White "AradNazari"]
[Black "gumimis"]
[Result "1-0"]
[WhiteElo "2392"]
[BlackElo "2145"]
[TimeControl "180+1"]
[EndTime "10:37:59 PDT"]
[Termination "AradNazari won by checkmate"]

1. e4 {[%clk 0:03:00.9]} 1... c6 {[%clk 0:02:58.5]} 2. d4 {[%clk 0:03:00.1]}
2... d5 {[%clk 0:02:58.8]} 3. Nc3 {[%clk 0:03:01]} 3... dxe4 {[%clk 0:02:58.7]}
4. Nxe4 {[%clk 0:03:01.9]} 4... Bf5 {[%clk 0:02:58]} 5. Ng3 {[%clk 0:03:01.4]}
5... Bg6 {[%clk 0:02:58.6]} 6. Nh3 {[%clk 0:03:01.4]} 6... Nf6 {[%clk
0:02:43.2]} 7. Nf4 {[%clk 0:02:59.4]} 7... e5 {[%clk 0:02:43.5]} 8. dxe5 {[%clk
0:02:54.9]} 8... Qa5+ {[%clk 0:02:42.3]} 9. Bd2 {[%clk 0:02:52.3]} 9... Qxe5+
{[%clk 0:02:42.5]} 10. Be2 {[%clk 0:02:50.8]} 10... Bc5 {[%clk 0:02:32.3]} 11.
O-O {[%clk 0:02:50]} 11... O-O {[%clk 0:02:30.9]} 12. Nd3 {[%clk 0:02:47.1]}
12... Bxd3 {[%clk 0:02:29.3]} 13. Bxd3 {[%clk 0:02:48]} 13... Nbd7 {[%clk
0:02:23.4]} 14. Bc3 {[%clk 0:02:45]} 14... Qc7 {[%clk 0:02:17.6]} 15. Nh5 {[%clk
0:02:44]} 15... Nxh5 {[%clk 0:01:22.6]} 16. Qxh5 {[%clk 0:02:44.9]} 16... g6
{[%clk 0:01:20]} 17. Qh6 {[%clk 0:02:36.1]} 17... f6 {[%clk 0:01:17.2]} 18. Rae1
{[%clk 0:02:19.3]} 18... Ne5 {[%clk 0:01:09.1]} 19. Be4 {[%clk 0:02:08.8]} 19...
Rae8 {[%clk 0:01:02.1]} 20. h3 {[%clk 0:01:59.8]} 20... b5 {[%clk 0:00:46.7]}
21. a3 {[%clk 0:01:57.6]} 21... a5 {[%clk 0:00:45.8]} 22. b4 {[%clk 0:01:55.7]}
22... axb4 {[%clk 0:00:45.8]} 23. axb4 {[%clk 0:01:56.6]} 23... Bb6 {[%clk
0:00:42.8]} 24. Kh1 {[%clk 0:01:55]} 24... f5 {[%clk 0:00:27.2]} 25. f4 {[%clk
0:01:39.5]} 25... Nc4 {[%clk 0:00:09.9]} 26. Bxc6 {[%clk 0:01:31.1]} 26... Rxe1
{[%clk 0:00:08.2]} 27. Bd5+ {[%clk 0:01:26.2]} 27... Rf7 {[%clk 0:00:08.5]} 28.
Qg7# {[%clk 0:01:25]} 1-0

[Event "*** SCC Grand Prix: Titled Tuesday Blitz"]
[Site "Chess.com"]
[Date "2020.06.23"]
[Round "4"]
[White "Chessdreamer2020"]
[Black "emperor87"]
[Result "0-1"]
[WhiteElo "2436"]
[BlackElo "2707"]
[TimeControl "180+1"]
[EndTime "10:38:07 PDT"]
[Termination "emperor87 won on time"]

1. e4 {[%clk 0:02:59.8]} 1... c5 {[%clk 0:03:00]} 2. Nf3 {[%clk 0:02:59.6]} 2...
d6 {[%clk 0:03:00.6]} 3. Bb5+ {[%clk 0:02:59.1]} 3... Nd7 {[%clk 0:03:00.2]} 4.
d4 {[%clk 0:02:53.7]} 4... cxd4 {[%clk 0:03:00.4]} 5. Qxd4 {[%clk 0:02:53.3]}
5... Nf6 {[%clk 0:03:00.4]} 6. O-O {[%clk 0:02:52.7]} 6... e5 {[%clk 0:03:00.4]}
7. Qd3 {[%clk 0:02:51.2]} 7... h6 {[%clk 0:03:00.7]} 8. c4 {[%clk 0:02:47.1]}
8... Be7 {[%clk 0:03:00.7]} 9. Nc3 {[%clk 0:02:46.6]} 9... O-O {[%clk
0:03:00.7]} 10. Bxd7 {[%clk 0:02:46.6]} 10... Bxd7 {[%clk 0:03:00.2]} 11. b3
{[%clk 0:02:44.5]} 11... Bc6 {[%clk 0:02:59.9]} 12. Nd5 {[%clk 0:02:39.4]} 12...
Nxd5 {[%clk 0:02:58.3]} 13. cxd5 {[%clk 0:02:39.4]} 13... Bd7 {[%clk 0:02:58.6]}
14. Nd2 {[%clk 0:02:30.8]} 14... f5 {[%clk 0:02:58.4]} 15. f3 {[%clk 0:02:30.9]}
15... Qb6+ {[%clk 0:02:58.3]} 16. Kh1 {[%clk 0:02:30]} 16... Bb5 {[%clk
0:02:55.2]} 17. Nc4 {[%clk 0:02:29.9]} 17... Qd4 {[%clk 0:02:43.6]} 18. Qxd4
{[%clk 0:02:23.1]} 18... exd4 {[%clk 0:02:43.8]} 19. Bb2 {[%clk 0:02:21.8]}
19... fxe4 {[%clk 0:02:38.9]} 20. fxe4 {[%clk 0:02:21.3]} 20... Rxf1+ {[%clk
0:02:39.4]} 21. Rxf1 {[%clk 0:02:20.5]} 21... Bxc4 {[%clk 0:02:39.1]} 22. bxc4
{[%clk 0:02:20.2]} 22... Rc8 {[%clk 0:02:39.3]} 23. Bxd4 {[%clk 0:01:39.4]}
23... Rxc4 {[%clk 0:02:39.3]} 24. Bxa7 {[%clk 0:01:39.2]} 24... Rxe4 {[%clk
0:02:39.5]} 25. Rb1 {[%clk 0:01:25.1]} 25... Ra4 {[%clk 0:02:39.3]} 26. Bg1
{[%clk 0:01:23.2]} 26... Rxa2 {[%clk 0:02:38.3]} 27. Rxb7 {[%clk 0:01:23.1]}
27... Bf6 {[%clk 0:02:38.4]} 28. g3 {[%clk 0:01:10.7]} 28... Rd2 {[%clk
0:02:35.2]} 29. Rb5 {[%clk 0:01:09]} 29... Be5 {[%clk 0:02:34.7]} 30. Ba7 {[%clk
0:01:04]} 30... Kf7 {[%clk 0:02:33]} 31. Bb8 {[%clk 0:01:03.5]} 31... Kf6 {[%clk
0:02:32.2]} 32. Ba7 {[%clk 0:00:57.7]} 32... Kf5 {[%clk 0:02:30.8]} 33. Rb7
{[%clk 0:00:48.1]} 33... h5 {[%clk 0:02:26.3]} 34. Rb5 {[%clk 0:00:40.6]} 34...
g5 {[%clk 0:02:23.5]} 35. Kg1 {[%clk 0:00:38.8]} 35... h4 {[%clk 0:02:20.8]} 36.
Bf2 {[%clk 0:00:23.1]} 36... h3 {[%clk 0:02:17.8]} 37. Kf1 {[%clk 0:00:20.4]}
37... g4 {[%clk 0:02:01.8]} 38. Ke1 {[%clk 0:00:10.2]} 38... Rb2 {[%clk
0:02:01.1]} 39. Rxb2 {[%clk 0:00:08.6]} 39... Bxb2 {[%clk 0:02:00.9]} 40. Ke2
{[%clk 0:00:08.6]} 40... Ke4 {[%clk 0:02:00.8]} 41. Ba7 {[%clk 0:00:04.5]} 41...
Bd4 {[%clk 0:01:58.2]} 0-1

[Event "*** SCC Grand Prix: Titled Tuesday Blitz"]
[Site "Chess.com"]
[Date "2020.06.23"]
[Round "4"]
[White "Ural_bogatyr"]
[Black "manitodeplomo"]
[Result "0-1"]
[WhiteElo "2341"]
[BlackElo "2541"]
[TimeControl "180+1"]
[EndTime "10:38:10 PDT"]
[Termination "manitodeplomo won by resignation"]

1. e4 {[%clk 0:03:00.9]} 1... e6 {[%clk 0:02:57.3]} 2. d4 {[%clk 0:03:00.3]}
2... d5 {[%clk 0:02:54.6]} 3. Bd3 {[%clk 0:03:00.7]} 3... dxe4 {[%clk
0:02:40.1]} 4. Bxe4 {[%clk 0:03:01.6]} 4... Nf6 {[%clk 0:02:40.8]} 5. Bf3 {[%clk
0:03:01.6]} 5... c5 {[%clk 0:02:35.6]} 6. Ne2 {[%clk 0:03:01.5]} 6... cxd4
{[%clk 0:02:27.1]} 7. Qxd4 {[%clk 0:03:00.6]} 7... Qxd4 {[%clk 0:02:21.8]} 8.
Nxd4 {[%clk 0:03:01.5]} 8... a6 {[%clk 0:02:17.6]} 9. O-O {[%clk 0:02:53.2]}
9... Bc5 {[%clk 0:02:14.3]} 10. Nb3 {[%clk 0:02:50.9]} 10... Ba7 {[%clk
0:02:13.5]} 11. Na5 {[%clk 0:02:45.7]} 11... Nd5 {[%clk 0:02:01.6]} 12. c4
{[%clk 0:02:34.2]} 12... Nb4 {[%clk 0:02:01.3]} 13. Nxb7 {[%clk 0:02:15.7]}
13... Nc2 {[%clk 0:01:57.1]} 14. Nd6+ {[%clk 0:02:07.1]} 14... Ke7 {[%clk
0:01:57]} 15. Nxc8+ {[%clk 0:01:57.5]} 15... Rxc8 {[%clk 0:01:57.9]} 16. Bxa8
{[%clk 0:01:57.3]} 16... Nxa1 {[%clk 0:01:56.7]} 17. Na3 {[%clk 0:01:56.1]}
17... Bc5 {[%clk 0:01:52.2]} 18. b3 {[%clk 0:01:31.5]} 18... Bd4 {[%clk
0:01:41.2]} 19. Rd1 {[%clk 0:00:49.2]} 19... e5 {[%clk 0:01:32.2]} 20. Bd5
{[%clk 0:00:29.8]} 20... Nc6 {[%clk 0:01:30]} 21. Kf1 {[%clk 0:00:29.5]} 21...
Nb4 {[%clk 0:01:28.9]} 22. Bd2 {[%clk 0:00:25.1]} 22... Nxa2 {[%clk 0:01:16]}
23. Be3 {[%clk 0:00:16.7]} 23... Nxb3 {[%clk 0:01:13.8]} 24. Bxd4 {[%clk
0:00:15.7]} 24... Nxd4 {[%clk 0:01:14.7]} 25. f4 {[%clk 0:00:12.3]} 25... f6
{[%clk 0:01:12.6]} 26. fxe5 {[%clk 0:00:12.1]} 26... fxe5 {[%clk 0:01:13.5]} 27.
Kf2 {[%clk 0:00:13]} 27... Nc3 {[%clk 0:01:11.4]} 28. Rc1 {[%clk 0:00:11.1]}
28... Nxd5 {[%clk 0:01:08.4]} 0-1

[Event "*** SCC Grand Prix: Titled Tuesday Blitz"]
[Site "Chess.com"]
[Date "2020.06.23"]
[Round "4"]
[White "Gajuchess"]
[Black "AlanTate"]
[Result "1-0"]
[WhiteElo "2767"]
[BlackElo "2504"]
[TimeControl "180+1"]
[EndTime "10:38:11 PDT"]
[Termination "Gajuchess won on time"]

1. d4 {[%clk 0:03:00.9]} 1... d5 {[%clk 0:02:59.5]} 2. c4 {[%clk 0:03:00.8]}
2... c6 {[%clk 0:03:00.1]} 3. Nf3 {[%clk 0:03:01.3]} 3... Nf6 {[%clk 0:03:00.4]}
4. e3 {[%clk 0:03:02.2]} 4... Bg4 {[%clk 0:03:00.5]} 5. Nbd2 {[%clk 0:03:03.1]}
5... e6 {[%clk 0:02:56.1]} 6. h3 {[%clk 0:03:03.2]} 6... Bxf3 {[%clk 0:02:54]}
7. Nxf3 {[%clk 0:02:57]} 7... Bb4+ {[%clk 0:02:53.6]} 8. Bd2 {[%clk 0:02:57]}
8... Qa5 {[%clk 0:02:46.7]} 9. Bd3 {[%clk 0:02:54.4]} 9... dxc4 {[%clk
0:02:35.4]} 10. Bxc4 {[%clk 0:02:54.1]} 10... Ne4 {[%clk 0:02:35.7]} 11. a3
{[%clk 0:02:49.1]} 11... Bxd2+ {[%clk 0:02:31.2]} 12. Nxd2 {[%clk 0:02:50]}
12... Nxd2 {[%clk 0:02:13.2]} 13. Qxd2 {[%clk 0:02:50.9]} 13... Qxd2+ {[%clk
0:02:11.2]} 14. Kxd2 {[%clk 0:02:51.8]} 14... Nd7 {[%clk 0:01:54.8]} 15. Rhc1
{[%clk 0:02:50.7]} 15... Ke7 {[%clk 0:01:39.9]} 16. b4 {[%clk 0:02:46.6]} 16...
Rhd8 {[%clk 0:01:29.8]} 17. Be2 {[%clk 0:02:39.1]} 17... Nf6 {[%clk 0:00:59.4]}
18. Kc2 {[%clk 0:02:24.9]} 18... Ne4 {[%clk 0:00:48.5]} 19. Bf3 {[%clk
0:02:22.4]} 19... Nd6 {[%clk 0:00:49]} 20. Kb3 {[%clk 0:02:17.2]} 20... a5
{[%clk 0:00:42.1]} 21. a4 {[%clk 0:01:58]} 21... axb4 {[%clk 0:00:38.6]} 22.
Kxb4 {[%clk 0:01:57.7]} 22... g6 {[%clk 0:00:21.6]} 23. a5 {[%clk 0:01:52.5]}
23... Rdb8 {[%clk 0:00:12.5]} 24. Rcb1 {[%clk 0:01:38.1]} 24... Ra6 {[%clk
0:00:03.2]} 25. Be2 {[%clk 0:01:36.7]} 25... Ra7 {[%clk 0:00:03.3]} 26. Kc5
{[%clk 0:01:22.1]} 26... Rba8 {[%clk 0:00:02.5]} 27. a6 {[%clk 0:01:22]} 27...
bxa6 {[%clk 0:00:01.2]} 28. Bd3 {[%clk 0:01:16.3]} 1-0

[Event "*** SCC Grand Prix: Titled Tuesday Blitz"]
[Site "Chess.com"]
[Date "2020.06.23"]
[Round "4"]
[White "GigaQuparadze"]
[Black "Azerichess"]
[Result "1-0"]
[WhiteElo "2831"]
[BlackElo "3029"]
[TimeControl "180+1"]
[EndTime "10:38:13 PDT"]
[Termination "GigaQuparadze won by resignation"]

1. e4 {[%clk 0:03:00.9]} 1... e5 {[%clk 0:02:58.6]} 2. Nf3 {[%clk 0:03:00.3]}
2... Nc6 {[%clk 0:02:59.1]} 3. Bb5 {[%clk 0:03:00.2]} 3... g6 {[%clk 0:02:58.3]}
4. c3 {[%clk 0:02:57.7]} 4... a6 {[%clk 0:02:56.6]} 5. Bxc6 {[%clk 0:02:57]}
5... dxc6 {[%clk 0:02:56.6]} 6. d4 {[%clk 0:02:57.2]} 6... exd4 {[%clk
0:02:57.2]} 7. cxd4 {[%clk 0:02:58.1]} 7... Bg7 {[%clk 0:02:57.8]} 8. h3 {[%clk
0:02:57.8]} 8... Ne7 {[%clk 0:02:55.6]} 9. O-O {[%clk 0:02:55.5]} 9... O-O
{[%clk 0:02:54.9]} 10. Nc3 {[%clk 0:02:55.6]} 10... h6 {[%clk 0:02:54.8]} 11.
Be3 {[%clk 0:02:55.1]} 11... f5 {[%clk 0:02:53.4]} 12. Re1 {[%clk 0:02:48.6]}
12... Kh7 {[%clk 0:02:51.7]} 13. Qd2 {[%clk 0:02:41]} 13... fxe4 {[%clk
0:02:47]} 14. Nxe4 {[%clk 0:02:41.9]} 14... Rxf3 {[%clk 0:02:47.2]} 15. gxf3
{[%clk 0:02:38.5]} 15... Bxh3 {[%clk 0:02:43.6]} 16. Ng5+ {[%clk 0:02:24.8]}
16... hxg5 {[%clk 0:02:41.1]} 17. Bxg5 {[%clk 0:02:25.7]} 17... Qd5 {[%clk
0:02:10.9]} 18. Bxe7 {[%clk 0:02:24.9]} 18... Qxf3 {[%clk 0:01:55.8]} 19. Qg5
{[%clk 0:02:24.5]} 19... Bxd4 {[%clk 0:01:56.2]} 20. Kh2 {[%clk 0:02:02.2]}
20... Bxf2 {[%clk 0:01:03.6]} 21. Bb4 {[%clk 0:01:21.7]} 21... Rg8 {[%clk
0:00:13.9]} 22. Bc3 {[%clk 0:01:02.6]} 22... Bc5 {[%clk 0:00:06.2]} 23. Qh4+
{[%clk 0:01:01.1]} 1-0

[Event "*** SCC Grand Prix: Titled Tuesday Blitz"]
[Site "Chess.com"]
[Date "2020.06.23"]
[Round "4"]
[White "sertalzin"]
[Black "MYMChessAcademy"]
[Result "1-0"]
[WhiteElo "2027"]
[BlackElo "2229"]
[TimeControl "180+1"]
[EndTime "10:38:15 PDT"]
[Termination "sertalzin won by resignation"]

1. d4 {[%clk 0:03:00.9]} 1... Nf6 {[%clk 0:02:58.4]} 2. c4 {[%clk 0:02:56.5]}
2... g6 {[%clk 0:02:58.2]} 3. Nc3 {[%clk 0:02:55.4]} 3... Bg7 {[%clk 0:02:56.7]}
4. e4 {[%clk 0:02:54.2]} 4... d6 {[%clk 0:02:56.8]} 5. f4 {[%clk 0:02:53.5]}
5... O-O {[%clk 0:02:55]} 6. Nf3 {[%clk 0:02:53]} 6... Nc6 {[%clk 0:02:54.5]} 7.
d5 {[%clk 0:02:51.9]} 7... Nb8 {[%clk 0:02:52.2]} 8. Bd3 {[%clk 0:02:50.5]} 8...
Nbd7 {[%clk 0:02:51.9]} 9. O-O {[%clk 0:02:48.7]} 9... Nc5 {[%clk 0:02:50]} 10.
Bc2 {[%clk 0:02:47.8]} 10... a5 {[%clk 0:02:41.8]} 11. Be3 {[%clk 0:02:46.4]}
11... Nfd7 {[%clk 0:02:35.8]} 12. Qd2 {[%clk 0:02:38.5]} 12... b6 {[%clk
0:02:18.2]} 13. Rae1 {[%clk 0:02:34.9]} 13... e5 {[%clk 0:02:17.8]} 14. f5
{[%clk 0:02:31.5]} 14... Bb7 {[%clk 0:02:00.9]} 15. g4 {[%clk 0:02:28.4]} 15...
Kh8 {[%clk 0:01:52.1]} 16. g5 {[%clk 0:02:26.4]} 16... Rg8 {[%clk 0:01:33.2]}
17. f6 {[%clk 0:02:21.8]} 17... Bf8 {[%clk 0:01:29.9]} 18. h4 {[%clk 0:02:10.1]}
18... Na6 {[%clk 0:01:23.2]} 19. Kf2 {[%clk 0:02:05.4]} 19... Nb4 {[%clk
0:01:22]} 20. Bb1 {[%clk 0:02:04]} 20... Nc5 {[%clk 0:01:19.5]} 21. a3 {[%clk
0:01:48]} 21... Nba6 {[%clk 0:01:16.2]} 22. Rh1 {[%clk 0:01:42.1]} 22... Bc8
{[%clk 0:00:58.5]} 23. Reg1 {[%clk 0:01:35.1]} 23... Bd7 {[%clk 0:00:56.2]} 24.
h5 {[%clk 0:01:34]} 24... Qc8 {[%clk 0:00:56.1]} 25. hxg6 {[%clk 0:01:25.2]}
25... Rxg6 {[%clk 0:00:49.3]} 26. Rh4 {[%clk 0:01:14.5]} 26... Nb3 {[%clk
0:00:31.6]} 27. Qd1 {[%clk 0:01:07.1]} 27... Nac5 {[%clk 0:00:23.5]} 28. Rgh1
{[%clk 0:01:02.2]} 1-0

[Event "*** SCC Grand Prix: Titled Tuesday Blitz"]
[Site "Chess.com"]
[Date "2020.06.23"]
[Round "4"]
[White "MoreChessJulia"]
[Black "Loveforever_Pepi"]
[Result "0-1"]
[WhiteElo "1758"]
[BlackElo "2179"]
[TimeControl "180+1"]
[EndTime "10:38:17 PDT"]
[Termination "Loveforever_Pepi won by resignation"]

1. d4 {[%clk 0:02:54.5]} 1... d5 {[%clk 0:02:58.2]} 2. c4 {[%clk 0:02:53.4]}
2... e6 {[%clk 0:02:58.1]} 3. Nc3 {[%clk 0:02:53.3]} 3... c5 {[%clk 0:02:58.4]}
4. cxd5 {[%clk 0:02:51.5]} 4... exd5 {[%clk 0:02:58.4]} 5. Nf3 {[%clk
0:02:51.9]} 5... Nc6 {[%clk 0:02:58.4]} 6. e3 {[%clk 0:02:52.2]} 6... Nf6 {[%clk
0:02:58.4]} 7. a3 {[%clk 0:02:52.3]} 7... cxd4 {[%clk 0:02:57.9]} 8. Nxd4 {[%clk
0:02:50.8]} 8... Bd6 {[%clk 0:02:58.3]} 9. Bb5 {[%clk 0:02:46.8]} 9... Bd7
{[%clk 0:02:55.6]} 10. Nxc6 {[%clk 0:02:45.7]} 10... bxc6 {[%clk 0:02:54.9]} 11.
Be2 {[%clk 0:02:45.2]} 11... O-O {[%clk 0:02:52.6]} 12. O-O {[%clk 0:02:44.6]}
12... Qe7 {[%clk 0:02:52]} 13. h3 {[%clk 0:02:44.3]} 13... Rfe8 {[%clk
0:02:47.6]} 14. f4 {[%clk 0:02:39]} 14... a5 {[%clk 0:02:23.7]} 15. Bd2 {[%clk
0:02:33.7]} 15... Rab8 {[%clk 0:02:00.1]} 16. Rb1 {[%clk 0:02:32.7]} 16... c5
{[%clk 0:01:58.5]} 17. Bf3 {[%clk 0:02:31.2]} 17... Bc6 {[%clk 0:01:48.5]} 18.
Kh1 {[%clk 0:02:19.5]} 18... h6 {[%clk 0:01:46.5]} 19. Qc1 {[%clk 0:02:15.5]}
19... Qb7 {[%clk 0:01:35]} 20. Nd1 {[%clk 0:02:13.2]} 20... Ne4 {[%clk
0:01:31.9]} 21. Bxe4 {[%clk 0:02:11.7]} 21... Rxe4 {[%clk 0:01:30.1]} 22. Nf2
{[%clk 0:02:11.3]} 22... Rc4 {[%clk 0:01:25.7]} 23. Qd1 {[%clk 0:02:00.5]} 23...
d4 {[%clk 0:01:20.7]} 24. Qg4 {[%clk 0:01:57.2]} 24... Rc2 {[%clk 0:01:15.9]}
25. Rfd1 {[%clk 0:01:52.6]} 25... Rxb2 {[%clk 0:01:10.4]} 26. Rxb2 {[%clk
0:01:50]} 26... Qxb2 {[%clk 0:01:10.8]} 27. e4 {[%clk 0:01:47.9]} 27... Ba4
{[%clk 0:01:04]} 28. e5 {[%clk 0:01:43.8]} 28... Bxd1 {[%clk 0:01:03]} 29. Qxd1
{[%clk 0:01:42]} 29... Bf8 {[%clk 0:00:46.6]} 30. Kh2 {[%clk 0:01:37.6]} 30...
Qb1 {[%clk 0:00:40.5]} 31. Qg4 {[%clk 0:01:33.7]} 31... Rb2 {[%clk 0:00:36.7]}
32. Bxa5 {[%clk 0:01:14.7]} 32... Rxf2 {[%clk 0:00:33.9]} 33. Bd8 {[%clk
0:01:14]} 33... Qe4 {[%clk 0:00:30.8]} 34. Bh4 {[%clk 0:01:11.7]} 34... Qxf4+
{[%clk 0:00:29.6]} 0-1

[Event "*** SCC Grand Prix: Titled Tuesday Blitz"]
[Site "Chess.com"]
[Date "2020.06.23"]
[Round "4"]
[White "BigAl"]
[Black "fabianvivasz"]
[Result "1-0"]
[WhiteElo "2452"]
[BlackElo "2280"]
[TimeControl "180+1"]
[EndTime "10:38:21 PDT"]
[Termination "BigAl won by resignation"]

1. e4 {[%clk 0:03:00.9]} 1... e5 {[%clk 0:02:56.6]} 2. Bc4 {[%clk 0:03:00.3]}
2... Nf6 {[%clk 0:02:56.2]} 3. d3 {[%clk 0:03:00.9]} 3... c6 {[%clk 0:02:53.7]}
4. Nf3 {[%clk 0:03:01.1]} 4... d5 {[%clk 0:02:52.9]} 5. Bb3 {[%clk 0:03:01.2]}
5... Bd6 {[%clk 0:02:42.6]} 6. Nc3 {[%clk 0:02:59.7]} 6... d4 {[%clk 0:02:15.6]}
7. Ne2 {[%clk 0:02:58.4]} 7... Na6 {[%clk 0:02:08.7]} 8. c3 {[%clk 0:02:53.5]}
8... dxc3 {[%clk 0:02:04.5]} 9. bxc3 {[%clk 0:02:52.9]} 9... O-O {[%clk
0:02:02.9]} 10. O-O {[%clk 0:02:48]} 10... Nc5 {[%clk 0:02:01.1]} 11. Bc2 {[%clk
0:02:47]} 11... Bg4 {[%clk 0:01:54.9]} 12. Ng3 {[%clk 0:02:45.6]} 12... Re8
{[%clk 0:01:47.2]} 13. h3 {[%clk 0:02:44.3]} 13... Bd7 {[%clk 0:01:27]} 14. Re1
{[%clk 0:02:32.9]} 14... Ne6 {[%clk 0:01:26.1]} 15. d4 {[%clk 0:02:29.3]} 15...
Nf8 {[%clk 0:01:24.2]} 16. dxe5 {[%clk 0:02:24.2]} 16... Bxe5 {[%clk 0:01:25.1]}
17. Nxe5 {[%clk 0:02:24.2]} 17... Rxe5 {[%clk 0:01:25.5]} 18. f4 {[%clk
0:02:19.6]} 18... Re8 {[%clk 0:01:18.9]} 19. Be3 {[%clk 0:02:01.4]} 19... Qa5
{[%clk 0:01:09.4]} 20. Bd4 {[%clk 0:01:54.7]} 20... Rad8 {[%clk 0:00:49.8]} 21.
Qf3 {[%clk 0:01:30.3]} 21... Be6 {[%clk 0:00:25.9]} 22. f5 {[%clk 0:01:20.5]}
22... Bc4 {[%clk 0:00:23.5]} 23. e5 {[%clk 0:01:20.6]} 23... Nd5 {[%clk
0:00:21.5]} 24. Ne4 {[%clk 0:01:09.2]} 24... c5 {[%clk 0:00:12.6]} 25. Nxc5
{[%clk 0:01:07.1]} 25... b6 {[%clk 0:00:06.5]} 26. Nb7 {[%clk 0:01:05.7]} 26...
Qb5 {[%clk 0:00:05.8]} 27. Nxd8 {[%clk 0:01:05.8]} 27... Rxd8 {[%clk 0:00:06.7]}
28. e6 {[%clk 0:01:03.3]} 28... Nb4 {[%clk 0:00:03.3]} 1-0